bitfinex-derivatives/quotes_BTCF0:USTF0_20250427
["timestamp","ask_amount","ask_price","bid_price","bid_amount"]
[1745795027705,0.64851002,93872.0,93871.0,0.12945]
[1745795028004,1.00931002,93872.0,93871.0,0.12945]
[1745795028200,1.03971002,93872.0,93871.0,0.00945]
[1745795036210,1.03971002,93872.0,93871.0,0.12945]
[1745795037108,1.14747387,93872.0,93871.0,0.00945]
[1745795041214,1.03971002,93872.0,93871.0,0.00945]
[1745795043216,1.04171002,93872.0,93871.0,0.00945]
[1745795043607,1.03971002,93872.0,93871.0,0.00945]
[1745795043806,1.04171002,93872.0,93871.0,0.00945]
[1745795044010,1.04071002,93872.0,93871.0,0.00945]
[1745795044207,1.04271002,93872.0,93871.0,0.00945]
[1745795044802,1.04071002,93872.0,93871.0,0.00945]
[1745795045002,1.04271002,93872.0,93871.0,0.00945]
[1745795055123,1.04271002,93872.0,93871.0,0.12945]
[1745795055514,0.68191002,93872.0,93871.0,0.12945]
[1745795055712,1.04271002,93872.0,93871.0,0.12945]
[1745795057221,1.04271002,93872.0,93871.0,0.00945]
[1745795058224,1.04271002,93872.0,93871.0,0.12945]
[1745795059222,0.68191002,93872.0,93871.0,0.00945]
[1745795059418,1.04271002,93872.0,93871.0,0.00945]
[1745795060121,1.04271002,93872.0,93871.0,0.12945]
[1745795060322,1.01231002,93872.0,93871.0,0.15965]
[1745795060512,1.01231002,93872.0,93871.0,0.18995]
[1745795061813,1.05632388,93872.0,93871.0,0.18995]
[1745795065826,1.01231002,93872.0,93871.0,0.18995]
[1745795067930,1.01231002,93872.0,93871.0,0.1805]
[1745795071235,0.76712222,93872.0,93871.0,0.1805]
[1745795071531,0.00532,93876.0,93871.0,0.1805]
[1745795071532,0.3608,93889.0,93879.0,0.212972]
[1745795071736,0.2129613,93884.0,93879.0,0.222972]
[1745795071929,0.3608,93889.0,93879.0,0.222972]
[1745795071930,0.37305717,93880.0,93879.0,0.222972]
[1745795072125,0.16008747,93880.0,93879.0,1.842972]
[1745795072321,0.37305717,93880.0,93879.0,1.842972]
[1745795072516,0.16008747,93880.0,93879.0,1.873072]
[1745795072732,0.16408747,93880.0,93879.0,1.904172]
[1745795072932,0.007,93880.0,93879.0,1.905172]
[1745795074322,0.007,93880.0,93879.0,2.27257423]
[1745795074827,0.16008747,93882.0,93881.0,0.2129674]
[1745795075028,0.16008747,93882.0,93881.0,0.2329674]
[1745795075336,0.40190695,93895.0,93894.0,0.2129379]
[1745795076125,0.40190695,93895.0,93894.0,0.3990379]
[1745795076625,0.40290695,93895.0,93894.0,0.3990379]
[1745795076837,0.40290695,93895.0,93894.0,0.4000379]
[1745795077636,0.213938,93895.0,93894.0,0.4000379]
[1745795079233,0.001,93895.0,93894.0,0.4000379]
[1745795082731,0.032,93895.0,93894.0,0.4000379]
[1745795083238,0.001,93895.0,93894.0,0.4000379]
[1745795084837,0.0323,93895.0,93894.0,0.4000379]
[1745795086836,0.2452357,93895.0,93894.0,0.4000379]
[1745795090138,0.2452357,93895.0,93894.0,0.1871]
[1745795090332,0.2452357,93895.0,93894.0,0.121]
[1745795092240,0.6060357,93895.0,93894.0,0.121]
[1745795092431,1.15192622,93895.0,93867.0,0.06688]
[1745795092633,0.2129969,93868.0,93867.0,0.09738]
[1745795093331,0.2129969,93868.0,93867.0,0.21738]
[1745795093839,0.2445969,93868.0,93867.0,0.25048]
[1745795094034,0.2455969,93868.0,93867.0,0.26248]
[1745795094236,0.2455969,93868.0,93867.0,0.4754792]
[1745795094634,0.2455969,93868.0,93867.0,0.4085992]
[1745795094827,0.2455969,93868.0,93867.0,0.4095992]
[1745795095444,0.2455969,93868.0,93867.0,0.4085992]
[1745795095656,0.2455969,93868.0,93867.0,0.4025992]
[1745795095848,0.2455969,93868.0,93867.0,0.131]
[1745795096147,0.2455969,93868.0,93867.0,0.01]
[1745795096544,0.2445969,93868.0,93867.0,0.008]
[1745795097045,0.2445969,93868.0,93867.0,0.005]
[1745795097949,0.2445969,93868.0,93867.0,0.002]
[1745795098147,0.2445969,93868.0,93867.0,0.004]
[1745795098549,0.2445969,93868.0,93867.0,0.002]
[1745795098845,0.2445969,93868.0,93867.0,0.004]
[1745795103139,0.2445969,93868.0,93857.0,0.01302658]
[1745795103140,0.0532502,93867.0,93857.0,0.01302658]
[1745795103444,0.5738128,93861.0,93857.0,0.01302658]
[1745795103944,0.2130173,93859.0,93857.0,0.01302658]
[1745795104640,0.2452173,93859.0,93857.0,0.01302658]
[1745795105243,0.2452173,93859.0,93858.0,0.22056976]
[1745795105445,0.2462173,93859.0,93858.0,0.22456976]
[1745795106543,0.64853952,93859.0,93858.0,0.22456976]
[1745795106746,1.53780352,93859.0,93858.0,0.20271823]
[1745795107043,1.53780352,93859.0,93858.0,0.13760693]
[1745795107241,1.65780352,93859.0,93858.0,0.13760693]
[1745795108243,1.40780352,93859.0,93858.0,0.13760693]
[1745795108447,0.21304,93849.0,93848.0,0.0015982]
[1745795108650,0.97616222,93849.0,93848.0,0.0015982]
[1745795109234,1.03886222,93849.0,93848.0,0.0015982]
[1745795110333,1.03886222,93849.0,93848.0,0.0045982]
[1745795110933,1.03986222,93849.0,93848.0,0.0085982]
[1745795112150,1.03986222,93849.0,93848.0,0.01642826]
[1745795117951,1.03986222,93849.0,93848.0,0.01542826]
[1745795118450,1.03986222,93849.0,93848.0,0.01242826]
[1745795118658,1.03886222,93849.0,93848.0,0.01342826]
[1745795119342,0.2130514,93844.0,93843.0,0.05645502]
[1745795120247,0.2130514,93844.0,93843.0,0.17645502]
[1745795121151,0.2130514,93844.0,93843.0,0.18441296]
[1745795121655,0.2140514,93844.0,93843.0,0.18541296]
[1745795128665,0.25807733,93844.0,93843.0,0.18541296]
[1745795132559,0.04502593,93844.0,93843.0,0.39846666]
[1745795132758,0.04502593,93844.0,93843.0,0.41846666]
[1745795133065,0.04502593,93844.0,93843.0,1.91846666]
[1745795135366,0.5748514,93844.0,93843.0,0.18541296]
[1745795140161,0.5748514,93844.0,93843.0,0.06541296]
[1745795141063,0.5748514,93844.0,93843.0,0.18541296]
[1745795142465,0.74040396,93844.0,93843.0,0.18541296]
[1745795144072,0.74140396,93844.0,93843.0,0.18541296]
[1745795144372,0.74140396,93844.0,93843.0,0.12895794]
[1745795144767,0.74040396,93844.0,93843.0,0.12795794]
[1745795144962,0.74140396,93844.0,93843.0,0.12895794]
[1745795145271,0.74140396,93844.0,93843.0,0.00895794]
[1745795145476,0.74240396,93844.0,93843.0,0.00895794]
[1745795145681,0.74340396,93844.0,93843.0,0.00895794]
[1745795145875,0.6080514,93844.0,93843.0,0.00795794]
[1745795146075,0.6070514,93844.0,93843.0,0.001]
[1745795146374,0.6396514,93844.0,93843.0,0.001]
[1745795147661,0.6376514,93844.0,93843.0,0.001]
[1745795147867,0.6396514,93844.0,93843.0,0.00914528]
[1745795149772,0.68367987,93844.0,93843.0,0.00914528]
[1745795151470,1.08600209,93844.0,93843.0,8e-08]
[1745795151676,0.2130627,93839.0,93838.0,0.00266]
[1745795151978,0.2130809,93831.0,93830.0,0.00106575]
[1745795152174,0.5738809,93831.0,93830.0,0.1291147]
[1745795152374,0.2130877,93828.0,93822.0,0.0312]
[1745795152879,0.2130877,93828.0,93823.0,0.03406]
[1745795153070,0.3065877,93828.0,93823.0,0.03406]
[1745795154567,0.3075877,93828.0,93827.0,0.00832893]
[1745795155066,0.3075877,93828.0,93827.0,0.00732893]
[1745795155678,0.3075877,93828.0,93827.0,0.01536828]
[1745795155980,0.3075877,93828.0,93827.0,0.00732893]
[1745795156879,0.3075877,93828.0,93827.0,0.00532893]
[1745795157179,0.3075877,93828.0,93827.0,0.00732893]
[1745795160286,0.3075877,93828.0,93827.0,0.01538342]
[1745795161777,1.0291877,93828.0,93827.0,0.01538342]
[1745795163879,1.0291877,93828.0,93827.0,0.01438342]
[1745795164181,1.0291877,93828.0,93827.0,0.01538342]
[1745795164478,1.0291877,93828.0,93827.0,0.01438342]
[1745795164669,1.0321877,93828.0,93827.0,0.01338342]
[1745795165270,1.0301877,93828.0,93827.0,0.01338342]
[1745795165471,1.0321877,93828.0,93827.0,0.01338342]
[1745795166068,1.0301877,93828.0,93827.0,0.01338342]
[1745795166277,1.0321877,93828.0,93827.0,0.01338342]
[1745795167872,0.2130968,93824.0,93823.0,0.00266]
[1745795168076,0.61541902,93824.0,93823.0,0.06496]
[1745795168271,0.61541902,93824.0,93823.0,0.0623]
[1745795168477,0.61541902,93824.0,93823.0,0.07035499]
[1745795169369,0.61641902,93824.0,93823.0,0.07135499]
[1745795170184,0.61741902,93824.0,93823.0,0.07135499]
[1745795173887,0.2150968,93824.0,93823.0,0.07135499]
[1745795176079,0.5758968,93824.0,93823.0,0.07135499]
[1745795178090,0.6078968,93824.0,93823.0,0.07135499]
[1745795178692,0.2470968,93824.0,93823.0,0.07135499]
[1745795178984,0.6078968,93824.0,93823.0,0.07135499]
[1745795183983,0.5758968,93824.0,93823.0,0.07135499]
[1745795185283,0.2150968,93824.0,93823.0,0.07135499]
[1745795190589,0.2452968,93824.0,93823.0,0.07135499]
[1745795192096,0.2150968,93824.0,93823.0,0.07135499]
[1745795192482,0.2150968,93824.0,93823.0,0.28445409]
[1745795194102,0.2150968,93824.0,93823.0,0.07135499]
[1745795197007,0.2150968,93824.0,93823.0,0.28445409]
[1745795197204,0.2150968,93824.0,93823.0,0.07135499]
[1745795199810,0.2150968,93824.0,93823.0,0.28445409]
[1745795200309,0.2150968,93824.0,93823.0,0.07135499]
[1745795201996,0.2150968,93824.0,93823.0,1.57135499]
[1745795204613,0.2150968,93824.0,93823.0,1.54035499]
[1745795205807,0.32352878,93824.0,93823.0,1.54035499]
[1745795206210,0.32352878,93824.0,93823.0,0.04035499]
[1745795206410,0.32352878,93824.0,93823.0,0.00905499]
[1745795207107,0.2131422,93804.0,93803.0,0.0668]
[1745795207408,0.2131491,93801.0,93798.0,0.0308]
[1745795207712,0.2131491,93801.0,93800.0,0.10922597]
[1745795209112,0.2141491,93801.0,93800.0,0.11422597]
[1745795215021,0.2141491,93801.0,93800.0,0.11022597]
[1745795215320,0.2141491,93801.0,93800.0,0.11422597]
[1745795215510,0.2141491,93801.0,93800.0,0.11322597]
[1745795215818,0.2141491,93801.0,93800.0,0.10922597]
[1745795216113,0.2141491,93801.0,93800.0,0.11122597]
[1745795221228,0.2141491,93801.0,93784.0,0.00159926]
[1745795221229,0.2131559,93798.0,93784.0,0.00159926]
[1745795221524,0.5739559,93798.0,93784.0,0.00159926]
[1745795222225,0.6939559,93798.0,93797.0,0.00733063]
[1745795222520,0.6949559,93798.0,93797.0,0.00733063]
[1745795224215,0.6949559,93798.0,93797.0,0.01532693]
[1745795225323,0.88263288,93798.0,93797.0,0.01532693]
[1745795226710,1.2849551,93798.0,93797.0,0.01532693]
[1745795227314,1.2849551,93798.0,93797.0,0.01332693]
[1745795227514,1.2849551,93798.0,93797.0,0.01432693]
[1745795228317,1.20389012,93798.0,93797.0,0.01432693]
[1745795228715,1.26709012,93798.0,93797.0,0.01432693]
[1745795230225,1.14709012,93798.0,93797.0,0.01432693]
[1745795230926,1.21389012,93798.0,93797.0,0.01432693]
[1745795231130,1.33289012,93798.0,93797.0,0.01432693]
[1745795231326,1.33389012,93798.0,93797.0,0.01432693]
[1745795232125,1.69469012,93798.0,93797.0,0.01432693]
[1745795233230,1.69469012,93798.0,93797.0,3e-08]
[1745795233429,0.2132173,93771.0,93767.0,0.00533234]
[1745795233726,0.2132173,93771.0,93768.0,0.0332]
[1745795234425,0.2132241,93768.0,93767.0,4e-08]
[1745795234619,0.3866721,93768.0,93767.0,4e-08]
[1745795235224,0.4494721,93768.0,93767.0,4e-08]
[1745795235430,0.4504721,93768.0,93767.0,0.00100004]
[1745795235814,0.4504721,93768.0,93767.0,0.00896313]
[1745795236127,0.4504721,93768.0,93767.0,0.00100004]
[1745795236624,0.4504721,93768.0,93767.0,4e-08]
[1745795237134,0.5704721,93768.0,93767.0,4e-08]
[1745795237518,0.2132605,93752.0,93751.0,0.0312]
[1745795237816,0.5740605,93752.0,93751.0,0.0642]
[1745795238622,0.5750605,93752.0,93751.0,0.07336454]
[1745795239617,0.5750605,93752.0,93751.0,0.07636454]
[1745795240626,0.001,93752.0,93751.0,0.64629124]
[1745795240938,0.2142605,93752.0,93751.0,0.98634854]
[1745795241227,0.2142605,93752.0,93751.0,0.34636454]
[1745795241429,0.2142605,93752.0,93751.0,0.09636454]
[1745795243137,0.5750605,93752.0,93751.0,0.09636454]
[1745795243829,0.5750605,93752.0,93751.0,0.07636454]
[1745795255228,0.5750605,93752.0,93740.0,0.00106677]
[1745795255229,0.2132855,93741.0,93740.0,0.00106677]
[1745795255432,0.5714255,93741.0,93740.0,0.00106677]
[1745795255641,0.6382255,93741.0,93740.0,0.00106677]
[1745795256327,0.6392255,93741.0,93740.0,0.00606677]
[1745795257044,0.6382255,93741.0,93740.0,0.03316677]
[1745795257241,0.6382255,93741.0,93740.0,0.03716677]
[1745795257541,0.6382255,93741.0,93740.0,0.04529803]
[1745795257930,0.6392255,93741.0,93740.0,0.04529803]
[1745795259242,0.6392255,93741.0,93740.0,0.04329803]
[1745795259739,0.6694255,93741.0,93740.0,0.04329803]
[1745795259939,0.6734255,93741.0,93740.0,0.04229803]
[1745795260139,0.6066255,93741.0,93740.0,0.04229803]
[1745795260344,0.6734255,93741.0,93740.0,0.04229803]
[1745795260547,0.6066255,93741.0,93740.0,0.04229803]
[1745795260747,0.6724255,93741.0,93740.0,0.04229803]
[1745795261035,0.6066255,93741.0,93740.0,0.04229803]
[1745795261241,0.6734255,93741.0,93740.0,0.04229803]
[1745795262847,0.6066255,93741.0,93740.0,0.04229803]
[1745795263040,0.6734255,93741.0,93740.0,0.04229803]
[1745795264046,0.6066255,93741.0,93740.0,0.04229803]
[1745795264242,0.6734255,93741.0,93740.0,0.04229803]
[1745795265450,0.7049255,93741.0,93740.0,0.04229803]
[1745795268048,1.17338614,93741.0,93740.0,0.04229803]
[1745795270746,1.10658614,93741.0,93740.0,0.04229803]
[1745795270944,0.68408614,93741.0,93740.0,0.04229803]
[1745795274646,0.5764255,93741.0,93740.0,0.04229803]
[1745795278238,0.5764255,93741.0,93740.0,0.07509803]
[1745795279845,0.3658,93741.0,93740.0,0.28838583]
[1745795280050,0.5790855,93741.0,93740.0,0.28838583]
[1745795280640,0.5790855,93741.0,93740.0,1.78838583]
[1745795283245,0.5790855,93741.0,93740.0,0.28838583]
[1745795288757,0.3658,93741.0,93740.0,0.28838583]
[1745795288958,0.3658,93741.0,93740.0,0.29838583]
[1745795289159,0.5790855,93741.0,93740.0,0.29838583]
[1745795291059,0.3658,93741.0,93740.0,0.29838583]
[1745795291261,0.3658,93741.0,93740.0,0.40506182]
[1745795291448,0.0808746,93747.0,93742.0,0.0533204]
[1745795291761,0.0808746,93747.0,93746.0,0.2132741]
[1745795291958,0.0808746,93747.0,93746.0,1.7332741]
[1745795292156,0.0808746,93747.0,93746.0,1.7969741]
[1745795292755,0.2981479,93747.0,93746.0,1.7969741]
[1745795292960,0.3001479,93747.0,93746.0,1.7969741]
[1745795293163,0.2192733,93747.0,93746.0,1.7969741]
[1745795294151,0.2182733,93747.0,93746.0,1.7969741]
[1745795300866,0.2182733,93747.0,93746.0,0.2969741]
[1745795301067,0.2510733,93747.0,93746.0,0.2969741]
[1745795305265,0.2817733,93747.0,93746.0,0.2969741]
[1745795311873,0.2817733,93747.0,93746.0,0.2869741]
[1745795312875,0.2817733,93747.0,93746.0,0.2769741]
[1745795315870,0.2817733,93747.0,93746.0,0.2458741]
[1745795316069,0.2132832,93742.0,93741.0,0.00266]
[1745795316473,0.2132855,93741.0,93740.0,0.00919803]
[1745795317763,0.2793855,93741.0,93740.0,0.00919803]
[1745795318172,0.2803855,93741.0,93740.0,0.00919803]
[1745795318671,0.6421855,93741.0,93740.0,0.00919803]
[1745795326280,0.72318165,93741.0,93740.0,0.00919803]
[1745795326480,0.72318165,93741.0,93737.0,0.00533404]
[1745795326481,0.2132923,93738.0,93737.0,0.00420208]
[1745795326983,0.3199723,93738.0,93737.0,0.00420208]
[1745795327389,0.3835723,93738.0,93737.0,0.00420208]
[1745795327682,0.3835723,93738.0,93737.0,0.0121327]
[1745795327866,0.3845723,93738.0,93737.0,0.00420208]
[1745795328884,0.3855723,93738.0,93737.0,0.00420208]
[1745795332485,0.3855723,93738.0,93737.0,0.01231514]
[1745795333085,0.2788923,93738.0,93737.0,0.01231514]
[1745795334582,1.0004923,93738.0,93737.0,0.01231514]
[1745795336673,1.08138233,93738.0,93737.0,0.01231514]
[1745795338075,0.72058233,93738.0,93737.0,0.01231514]
[1745795340780,0.6396923,93738.0,93737.0,0.01231514]
[1745795344478,0.6074923,93738.0,93737.0,0.01231514]
[1745795344985,0.5760923,93738.0,93737.0,0.01231514]
[1745795345378,0.5760923,93738.0,93737.0,0.22560974]
[1745795345586,0.5760923,93738.0,93737.0,0.25570974]
[1745795346171,0.5760923,93738.0,93737.0,0.04241514]
[1745795351685,0.6066923,93738.0,93737.0,0.04241514]
[1745795352384,0.5760923,93738.0,93737.0,0.04241514]
[1745795363001,0.5760923,93738.0,93737.0,0.07541514]
[1745795363504,0.2152923,93738.0,93737.0,0.39538974]
[1745795364001,0.2152923,93738.0,93737.0,1.89538974]
[1745795366302,0.2152923,93738.0,93737.0,1.78870974]
[1745795367003,0.2152923,93738.0,93737.0,1.57541514]
[1745795367202,0.2152923,93738.0,93737.0,1.78870974]
[1745795367504,0.2152923,93738.0,93737.0,0.28870974]
[1745795368400,0.2152923,93738.0,93737.0,0.07541514]
[1745795368904,0.2453923,93738.0,93737.0,0.07541514]
[1745795369107,0.2764923,93738.0,93737.0,0.07541514]
[1745795369699,0.6372923,93738.0,93737.0,0.07541514]
[1745795370806,0.6061923,93738.0,93737.0,0.07541514]
[1745795371302,0.6061923,93738.0,93737.0,0.28870974]
[1745795371900,0.6061923,93738.0,93737.0,0.07541514]
[1745795374512,0.6364923,93738.0,93737.0,0.07541514]
[1745795379214,0.6063923,93738.0,93737.0,0.07541514]
[1745795380515,0.6063923,93738.0,93737.0,0.28870974]
[1745795380821,0.6875064,93738.0,93737.0,0.28870974]
[1745795380998,0.6572064,93738.0,93737.0,0.28870974]
[1745795381815,0.4439141,93738.0,93737.0,0.40538974]
[1745795382013,0.0831141,93738.0,93737.0,0.40538974]
[1745795382211,0.2964064,93738.0,93737.0,0.40538974]
[1745795383314,0.2964064,93738.0,93737.0,1.90538974]
[1745795383505,1e-08,93738.0,93737.0,1.90538974]
[1745795385618,0.213286,93741.0,93740.0,0.2132855]
[1745795386119,0.213286,93741.0,93740.0,0.35146149]
[1745795386316,0.213286,93741.0,93740.0,0.36146149]
[1745795386710,0.215286,93741.0,93740.0,0.36246149]
[1745795387219,0.215286,93741.0,93740.0,0.2557855]
[1745795387717,0.214286,93741.0,93740.0,0.2547855]
[1745795387919,0.215286,93741.0,93740.0,0.2557855]
[1745795388720,0.214286,93741.0,93740.0,0.2557855]
[1745795389018,0.002,93741.0,93740.0,0.2557855]
[1745795390610,0.002,93741.0,93740.0,0.35246149]
[1745795392612,0.002,93741.0,93740.0,0.36246149]
[1745795396922,0.0341,93741.0,93740.0,0.36246149]
[1745795398026,0.0341,93741.0,93740.0,0.2557855]
[1745795398522,0.0341,93741.0,93740.0,0.2889855]
[1745795401027,0.2473855,93741.0,93740.0,0.2889855]
[1745795404931,0.0341,93741.0,93740.0,0.2889855]
[1745795405129,0.00533,93745.0,93744.0,0.2132787]
[1745795405327,0.0306,93750.0,93749.0,0.2132673]
[1745795405529,0.243865,93750.0,93749.0,0.2132673]
[1745795406131,0.243865,93750.0,93749.0,0.2744673]
[1745795406635,0.245865,93750.0,93749.0,0.2744673]
[1745795408335,0.247865,93750.0,93749.0,0.2744673]
[1745795409738,0.278865,93750.0,93749.0,0.2744673]
[1745795411425,0.278865,93750.0,93749.0,0.2433673]
[1745795417341,0.004,93750.0,93749.0,0.2533673]
[1745795417525,0.217265,93750.0,93749.0,0.2533673]
[1745795417724,0.217265,93750.0,93749.0,0.2845673]
[1745795419427,0.3608,93753.0,93749.0,0.2845673]
[1745795419740,0.0533015,93776.0,93763.0,0.2132354]
[1745795419930,0.0329,93774.0,93763.0,2.0940354]
[1745795420136,0.0329,93774.0,93770.0,0.2132195]
[1745795420340,0.0329,93774.0,93770.0,0.6506995]
[1745795421037,0.0329,93774.0,93770.0,0.5840195]
[1745795421357,0.0304,93778.0,93770.0,0.6506995]
[1745795421643,0.0329,93780.0,93770.0,0.7615087]
[1745795422540,0.17093606,93771.0,93770.0,0.7625087]
[1745795423338,0.17093606,93771.0,93770.0,0.8691527]
[1745795423639,0.0013,93791.0,93783.0,0.0532973]
[1745795423939,0.0328,93789.0,93788.0,0.2131786]
[1745795424140,0.0328,93789.0,93788.0,2.0739786]
[1745795424535,0.0328,93789.0,93788.0,2.1061786]
[1745795425637,0.0013,93791.0,93790.0,0.2131741]
[1745795425858,0.0013,93791.0,93790.0,0.23118413]
[1745795426647,0.0023,93791.0,93790.0,0.23118413]
[1745795427355,0.0013,93791.0,93790.0,0.23218413]
[1745795428143,0.0023,93791.0,93790.0,0.23218413]
[1745795428537,0.0637,93791.0,93790.0,0.29886413]
[1745795429043,0.0637,93791.0,93790.0,0.28886413]
[1745795429850,0.0331,93791.0,93790.0,0.28886413]
[1745795433045,0.0052,93798.0,93797.0,0.2131581]
[1745795433239,1e-08,93798.0,93797.0,0.5739581]
[1745795433950,1e-08,93798.0,93797.0,0.6378581]
[1745795434145,0.00300001,93798.0,93797.0,0.6378581]
[1745795434743,0.00500001,93798.0,93797.0,0.6378581]
[1745795439553,0.0013,93821.0,93820.0,0.2131059]
[1745795440246,0.0013,93821.0,93820.0,1.7131059]
[1745795440557,0.0093,93821.0,93820.0,1.7774059]
[1745795440747,0.0532715,93829.0,93820.0,1.7774059]
[1745795440748,0.266328,93844.0,93843.0,0.2130446]
[1745795440942,0.3295072,93847.0,93846.0,0.2130469]
[1745795442450,0.3355072,93847.0,93846.0,0.2140469]
[1745795446857,0.3355072,93847.0,93846.0,0.2218785]
[1745795447764,0.3355072,93847.0,93846.0,0.0098316]
[1745795448064,0.2130582,93841.0,93840.0,0.0666]
[1745795448464,0.2130718,93835.0,93834.0,0.3608]
[1745795450561,0.2130718,93835.0,93834.0,0.36879542]
[1745795450752,0.2140718,93835.0,93834.0,0.36979542]
[1745795451658,0.2140718,93835.0,93834.0,0.00899542]
[1745795451859,0.2131241,93812.0,93804.0,1.13628]
[1745795452054,0.2131241,93812.0,93811.0,0.37133561]
[1745795452358,0.2131241,93812.0,93811.0,0.3608]
[1745795452558,0.2131241,93812.0,93811.0,0.36874587]
[1745795452769,0.2443241,93812.0,93811.0,0.36874587]
[1745795453066,0.3643241,93812.0,93811.0,0.37374587]
[1745795453258,0.7564241,93812.0,93811.0,0.01294587]
[1745795453965,0.7564241,93812.0,93811.0,0.01694587]
[1745795454359,0.7564241,93812.0,93811.0,0.01294587]
[1745795454561,0.7564241,93812.0,93811.0,0.01594587]
[1745795455863,0.8630201,93812.0,93811.0,0.01594587]
[1745795456870,0.8630201,93812.0,93811.0,0.01494587]
[1745795457068,0.7564241,93812.0,93811.0,0.01194587]
[1745795457765,0.7564241,93812.0,93811.0,0.01094587]
[1745795460767,0.7564241,93812.0,93807.0,0.00266]
[1745795460768,0.2131332,93808.0,93807.0,0.00266]
[1745795460968,0.2131468,93802.0,93801.0,0.00159903]
[1745795461166,0.2131468,93802.0,93801.0,0.00963912]
[1745795461372,0.3197548,93802.0,93801.0,0.00159903]
[1745795461570,0.3510548,93802.0,93801.0,0.00159903]
[1745795461875,0.3815548,93802.0,93801.0,0.00159903]
[1745795462067,0.5015548,93802.0,93801.0,0.00159903]
[1745795463382,0.5015548,93802.0,93801.0,0.00359903]
[1745795463966,0.5015548,93802.0,93801.0,0.00659903]
[1745795465882,0.5015548,93802.0,93801.0,0.01461132]
[1745795466080,0.2749468,93802.0,93801.0,0.01461132]
[1745795467285,0.3949468,93802.0,93801.0,0.01461132]
[1745795468981,0.2131536,93799.0,93798.0,0.0318]
[1745795469179,0.2131536,93799.0,93798.0,0.03962278]
[1745795469372,0.3197656,93799.0,93798.0,0.03962278]
[1745795469780,0.3815656,93799.0,93798.0,0.03962278]
[1745795470282,0.5015656,93799.0,93798.0,0.03962278]
[1745795470682,0.5025656,93799.0,93798.0,0.03962278]
[1745795471084,0.5015656,93799.0,93798.0,0.04262278]
[1745795471380,0.5025656,93799.0,93798.0,0.04262278]
[1745795471991,0.0532967,93785.0,93774.0,0.00159957]
[1745795472282,0.2132013,93778.0,93774.0,0.21480967]
[1745795472582,0.2132013,93778.0,93774.0,0.21480827]
[1745795473178,0.2132013,93778.0,93777.0,0.36868435]
[1745795473382,0.2132013,93778.0,93777.0,0.37768435]
[1745795473773,0.2132013,93778.0,93777.0,0.37368435]
[1745795473973,0.2142013,93778.0,93777.0,0.37768435]
[1745795474181,0.2142013,93778.0,93777.0,0.59088795]
[1745795474384,0.2132013,93778.0,93777.0,0.58688795]
[1745795474685,0.2132013,93778.0,93777.0,0.58988795]
[1745795475681,0.2132013,93778.0,93777.0,0.58488795]
[1745795475874,0.2132013,93778.0,93777.0,0.58688795]
[1745795477176,0.2131792,93791.0,93790.0,0.2664564]
[1745795478274,0.2131792,93791.0,93790.0,0.3272564]
[1745795479874,0.2131792,93791.0,93790.0,0.273964]
[1745795482082,0.2131792,93791.0,93790.0,0.274964]
[1745795482283,0.2131792,93791.0,93790.0,0.275964]
[1745795482582,0.2131792,93791.0,93790.0,0.274964]
[1745795482988,0.2131792,93791.0,93790.0,0.275964]
[1745795483175,0.2131792,93791.0,93790.0,0.274964]
[1745795483375,0.2131792,93791.0,93790.0,0.0638]
[1745795483586,0.2131792,93791.0,93790.0,0.0326]
[1745795483587,0.3197992,93791.0,93790.0,0.0326]
[1745795483785,0.3197992,93791.0,93790.0,0.0346]
[1745795483986,0.4164992,93791.0,93790.0,0.0346]
[1745795485183,0.4174992,93791.0,93790.0,0.0306]
[1745795485975,0.4184992,93791.0,93790.0,0.0306]
[1745795486180,0.3118792,93791.0,93790.0,0.0306]
[1745795486785,0.3108792,93791.0,93790.0,0.0316]
[1745795487089,0.3098792,93791.0,93790.0,0.0316]
[1745795487284,0.3098792,93791.0,93790.0,0.0326]
[1745795489790,0.3098792,93791.0,93790.0,0.002]
[1745795490094,0.4298792,93791.0,93790.0,1e-07]
[1745795490789,0.5364992,93791.0,93790.0,1e-07]
[1745795491396,0.5374992,93791.0,93790.0,1e-07]
[1745795491892,0.6040992,93791.0,93790.0,1e-07]
[1745795492094,0.2132013,93778.0,93777.0,0.36868435]
[1745795493084,0.2743013,93778.0,93777.0,0.36868435]
[1745795493292,0.2743013,93778.0,93777.0,0.36968435]
[1745795494392,0.2743013,93778.0,93777.0,0.00888435]
[1745795494579,0.2743013,93778.0,93777.0,0.00988435]
[1745795502099,0.2743013,93778.0,93777.0,0.04308435]
[1745795508282,0.2433013,93778.0,93777.0,0.04308435]
[1745795509391,0.0533075,93766.0,93746.0,0.3608]
[1745795509586,0.2132332,93764.0,93763.0,0.031]
[1745795509787,0.5740332,93764.0,93763.0,0.031]
[1745795509987,0.6387332,93764.0,93763.0,0.031]
[1745795510189,0.7587332,93764.0,93763.0,0.031]
[1745795510686,0.7587332,93764.0,93763.0,0.036]
[1745795510890,0.7587332,93764.0,93763.0,0.01301828]
[1745795511092,0.2132445,93759.0,93758.0,0.0314]
[1745795511294,0.2132468,93758.0,93746.0,0.0324]
[1745795511496,0.2132627,93751.0,93747.0,0.0329]
[1745795511686,0.2132627,93751.0,93750.0,0.17061397]
[1745795512287,0.2776627,93751.0,93750.0,0.17061397]
[1745795512991,0.2776627,93751.0,93750.0,0.17661397]
[1745795513198,0.2786627,93751.0,93750.0,0.17661397]
[1745795513895,0.2786627,93751.0,93750.0,0.01408866]
[1745795514698,0.2786627,93751.0,93750.0,0.01808866]
[1745795516304,0.2786627,93751.0,93733.0,0.3608]
[1745795516305,0.0533195,93745.0,93733.0,0.3608]
[1745795516601,0.2132923,93738.0,93734.0,0.0323]
[1745795516802,0.2132923,93738.0,93735.0,0.032]
[1745795517389,0.2435923,93738.0,93735.0,0.032]
[1745795517795,0.2435923,93738.0,93737.0,0.01382944]
[1745795518495,0.2445923,93738.0,93737.0,0.01682944]
[1745795519901,0.2445923,93738.0,93737.0,0.01982944]
[1745795520098,0.2455923,93738.0,93737.0,0.01982944]
[1745795522995,0.6063923,93738.0,93737.0,0.01982944]
[1745795527413,0.5760923,93738.0,93737.0,0.23312404]
[1745795528807,0.2152923,93738.0,93737.0,0.23312404]
[1745795530402,0.2152923,93738.0,93737.0,0.23512404]
[1745795530598,0.2152923,93738.0,93737.0,0.23412404]
[1745795531214,0.2142923,93738.0,93737.0,0.23312404]
[1745795534503,0.001,93738.0,93737.0,0.23312404]
[1745795534710,0.0533154,93752.0,93741.0,0.2665963]
[1745795534911,0.2132741,93746.0,93745.0,0.5740754]
[1745795535099,0.2132741,93746.0,93745.0,0.3608]
[1745795535504,0.2132741,93746.0,93745.0,0.5740764]
[1745795536107,0.2132741,93746.0,93742.0,0.3080824]
[1745795536295,0.2132809,93743.0,93742.0,0.0948]
[1745795537001,0.2132809,93743.0,93742.0,0.3080832]
[1745795537404,0.2132809,93743.0,93742.0,0.3110832]